fUST/lending_fUST_20241114
["ID","MTS","AMOUNT","RATE_DAILY","PERIOD"]
[342176614,1731534642918,-415.294604,0.00029479,30]
[342176616,1731534642927,-403.5298767,0.00029479,30]
[342176617,1731534642937,-208.58947408,0.00029479,30]
[342176618,1731534642954,-3.60255212,0.00029479,30]
[342176619,1731534642968,-153.0,0.00029479,30]
[342176620,1731534642984,-212.1920262,0.00029479,30]
[342176621,1731534642998,-303.9227174,0.00029479,30]
[342176622,1731534643010,-303.0369346,0.00029479,30]
[342176623,1731534643024,-303.9227174,0.00029479,30]
[342176624,1731534643035,-396.9502599,0.00029479,30]
[342176625,1731534643046,-1500.0,0.00029495,5]
[342176626,1731534643057,-152.36,0.000295,31]
[342176627,1731534643074,-152.36,0.000295,31]
[342176628,1731534643085,-152.36,0.000295,31]
[342176629,1731534643096,-152.36,0.000295,31]
[342176630,1731534643114,-150.0,0.00029554,2]
[342176631,1731534643125,-183.83999588,0.00029589,10]
[342176632,1731534643141,-316.16000412,0.00029589,10]
[342176633,1731534643153,-500.0,0.00029589,4]
[342176634,1731534643164,-198.83803785,0.00029589,4]
[342176658,1731534782451,1392.57665084,0.00027,60]
[342176660,1731535220881,1333.0,0.00026137,120]
[342176662,1731535639217,-500.0,0.00016274,2]
[342176663,1731535639237,-229.78891165,0.00016274,2]
[342176664,1731535639258,-500.0,0.00017116,2]
[342176665,1731535639279,-500.0,0.00018016,2]
[342176666,1731535639299,-500.0,0.00018965,2]
[342176667,1731535639320,-500.0,0.00019963,2]
[342176668,1731535639341,-1169.27083333,0.0002,2]
[342176669,1731535639361,-206.2898405,0.00020982,2]
[342176670,1731535639385,-500.0,0.00021013,2]
[342176671,1731535639406,-175.402485,0.00021312,2]
[342176672,1731535639426,-500.0,0.00022119,2]
[342176673,1731535639447,-221.228093,0.00023206,2]
[342176674,1731535639468,-500.0,0.00023283,2]
[342176675,1731535639488,-300.0,0.00023798,2]
[342176676,1731535639509,-300.0,0.00023798,2]
[342176677,1731535639530,-24900.0,0.00023799,2]
[342176678,1731535639551,-766.38456904,0.00024348,2]
[342176679,1731535639572,-500.0,0.00024448,2]
[342176680,1731535639592,-221.228093,0.00024575,2]
[342176681,1731535639612,-215.56192395,0.00024658,2]
[342176682,1731535639636,-300.0,0.00025,2]
[342176683,1731535639656,-270.2,0.00025,2]
[342176684,1731535639677,-766.38456904,0.00025192,2]
[342176685,1731535639697,-500.0,0.0002567,2]
[342176686,1731535639839,-300.0,0.00026,2]
[342176687,1731535639861,-271.23,0.00026,2]
[342176688,1731535639887,-766.38456904,0.00026036,2]
[342176689,1731535639908,-500.0,0.00026685,7]
[342176690,1731535639931,-766.38456904,0.0002688,2]
[342176691,1731535639952,-500.0,0.00026954,2]
[342176692,1731535639973,-300.0,0.00027,2]
[342176693,1731535639993,-523.5,0.000273,2]
[342176694,1731535640013,-500.0,0.00027373,2]
[342176695,1731535640034,-268.63,0.00027387,3]
[342176696,1731535640054,-805.93,0.00027387,3]
[342176697,1731535640076,-297.0,0.00027387,10]
[342176698,1731535640098,-327.5,0.00027387,10]
[342176699,1731535640119,-633.8317175,0.00027397,2]
[342176700,1731535640143,-195.40443192,0.00027397,4]
[342176701,1731535640170,-584.04,0.00027397,4]
[342176702,1731535640191,-500.0,0.00027397,4]
[342176703,1731535640211,-500.0,0.00027397,4]
[342176704,1731535640232,-500.0,0.00027397,4]
[342176705,1731535640252,-335.50506043,0.00027397,4]
[342176706,1731535640272,-543.16949853,0.00027397,4]
[342176707,1731535640292,-442.79264705,0.00027397,4]
[342176739,1731535832157,-935.492778,0.0002,2]
[342176746,1731535832215,-233.77805533,0.0002,2]
[342176748,1731535832226,-360.0,0.00025,2]
[342176750,1731535832236,-300.0,0.00026,2]
[342176752,1731535832245,-244.11,0.00026,2]
[342176754,1731535832254,-500.0,0.00026685,7]
[342176756,1731535832267,-300.0,0.00027,2]
[342176758,1731535832275,-669.765628,0.00027297,2]
[342176760,1731535832284,-383.19228452,0.00027297,2]
[342176762,1731535832294,-59.50449189,0.00027397,4]
[342176764,1731535832303,-500.0,0.00027397,4]
[342176766,1731535832312,-500.43302034,0.00027397,4]
[342176767,1731535832322,-500.0,0.00027397,4]
[342176769,1731535832331,-500.0,0.00027397,4]
[342176771,1731535832340,-500.0,0.00027397,4]
[342176773,1731535832350,-500.0,0.00027397,4]
[342176775,1731535832359,-500.0,0.00027397,4]
[342176777,1731535832368,-500.0,0.00027397,4]
[342176779,1731535832378,-500.0,0.00027397,4]
[342176781,1731535832387,-200.0,0.00027397,4]
[342176783,1731535832396,-500.0,0.00027397,4]
[342176785,1731535832405,-212.309,0.00027397,16]
[342176786,1731535832414,-500.93127703,0.00027397,4]
[342176788,1731535832423,-500.0,0.00027397,4]
[342176790,1731535832432,-500.0,0.00027397,4]
[342176792,1731535832441,-467.90739279,0.00027397,4]
[342176794,1731535832451,-584.49370361,0.00027397,4]
[342176795,1731535832460,-500.0,0.00027397,4]
[342176796,1731535832470,-500.0,0.00027397,4]
[342176797,1731535832478,-500.0,0.00027397,4]
[342176798,1731535832487,-500.0,0.00027397,4]
[342176799,1731535832496,-500.0,0.00027397,4]
[342176800,1731535832506,-500.0,0.00027397,4]
[342176801,1731535832518,-500.0,0.00027397,4]
[342176802,1731535832527,-500.0,0.00027397,4]
[342176803,1731535832537,-500.0,0.00027397,4]
[342176804,1731535832546,-500.0,0.00027397,4]
[342176805,1731535832555,-500.0,0.00027397,4]
[342176806,1731535832564,-500.0,0.00027397,4]
[342176807,1731535832574,-500.0,0.00027397,4]
[342176808,1731535832583,-507.01009758,0.00027397,4]
[342176809,1731535832592,-500.0,0.00027397,4]
[342176810,1731535832602,-500.0,0.00027397,4]
[342176811,1731535832611,-500.0,0.00027397,4]
[342176812,1731535832621,-500.0,0.00027397,4]
[342176813,1731535832630,-500.0,0.00027397,4]
[342176814,1731535832639,-500.0,0.00027397,4]
[342176815,1731535832648,-500.0,0.00027397,4]
[342176816,1731535832658,-500.0,0.00027397,4]
[342176817,1731535832667,-500.0,0.00027397,4]
[342176818,1731535832676,-500.0,0.00027397,4]
[342176819,1731535832685,-500.0,0.00027397,4]
[342176820,1731535832694,-500.0,0.00027397,4]
[342176821,1731535832703,-441.027354,0.00027397,4]
[342176822,1731535832713,-500.0,0.00027397,4]
[342176823,1731535832722,-488.15369374,0.00027397,4]
[342176824,1731535832732,-500.0,0.00027397,4]
[342176825,1731535832741,-500.0,0.00027397,4]
[342176826,1731535832750,-500.0,0.00027397,4]
[342176827,1731535832761,-500.0,0.00027397,4]
[342176828,1731535832771,-1283.34473958,0.00027397,2]
[342176829,1731535832780,-500.0,0.00027397,4]
[342176830,1731535832789,-500.0,0.00027397,4]
[342176831,1731535832798,-500.0,0.00027397,4]
[342176832,1731535832808,-484.06365056,0.00027397,4]
[342176908,1731535840228,-422.55447834,0.00027397,2]
[342176910,1731535840237,-15.93634944,0.00027397,4]
[342176912,1731535840247,-448.22917222,0.00027397,4]
[342177219,1731535843421,-51.77082778,0.00027397,4]
[342177221,1731535843430,-500.0,0.00027397,4]
[342177223,1731535843440,-500.0,0.00027397,4]
[342177225,1731535843450,-500.0,0.00027397,4]
[342177227,1731535843459,-500.00840385,0.00027397,2]
[342177229,1731535843469,-500.0,0.00027397,4]
[342177231,1731535843479,-500.0,0.00027397,4]
[342177233,1731535843488,-500.0,0.00027397,4]
[342177235,1731535843498,-500.0,0.00027397,4]
[342177237,1731535843507,-500.0,0.00027397,4]
[342177239,1731535843517,-500.0,0.00027397,4]
[342177241,1731535843526,-500.0,0.00027397,4]
[342177243,1731535843536,-500.0,0.00027397,4]
[342177244,1731535843545,-500.0,0.00027397,4]
[342177246,1731535843555,-500.0,0.00027397,4]
[342177248,1731535843564,-500.0,0.00027397,4]
[342177250,1731535843574,-500.0,0.00027397,4]
[342177252,1731535843583,-500.0,0.00027397,4]
[342177254,1731535843593,-500.0,0.00027397,4]
[342177256,1731535843602,-350.28428086,0.00027397,4]
[342177259,1731535843614,-149.71571914,0.00027397,4]
[342177261,1731535843624,-454.27,0.00027397,4]
[342177263,1731535843633,-500.0,0.00027397,4]
[342177265,1731535843643,-500.0,0.00027397,4]
[342177267,1731535843652,-500.0,0.00027397,4]
[342177269,1731535843661,-500.0,0.00027397,4]
[342177271,1731535843671,-500.0,0.00027397,4]
[342177272,1731535843680,-500.0,0.00027397,4]
[342177274,1731535843689,-500.0,0.00027397,4]
[342177276,1731535843699,-500.0,0.00027397,4]
[342177278,1731535843708,-500.0,0.00027397,4]
[342177281,1731535843717,-500.0,0.00027397,4]
[342177283,1731535843727,-588.54,0.00027397,4]
[342177285,1731535843737,-610.042656,0.00027397,4]
[342177287,1731535843746,-500.0,0.00027397,4]
[342177289,1731535843755,-500.0,0.00027397,4]
[342177291,1731535843764,-500.0,0.00027397,4]
[342177292,1731535843775,-500.0,0.00027397,4]
[342177295,1731535843785,-353.21988009,0.00027397,4]
[342177297,1731535843797,-271.62011991,0.00027397,4]
[342177299,1731535843807,-434.13401399,0.00027397,4]
[342177509,1731535846661,-65.86598601,0.00027397,4]
[342177510,1731535846671,-500.0,0.00027397,4]
[342177511,1731535846680,-500.0,0.00027397,4]
[342177512,1731535846690,-605.16,0.00027397,4]
[342177513,1731535846841,-500.0,0.00027397,4]
[342177514,1731535846852,-500.0,0.00027397,4]
[342177515,1731535846861,-500.0,0.00027397,4]
[342177516,1731535846871,-500.0,0.00027397,4]
[342177517,1731535846880,-500.0,0.00027397,4]
[342177518,1731535846890,-500.0,0.00027397,4]
[342177519,1731535846899,-474.36905602,0.00027397,4]
[342177542,1731536008922,485.18999695,0.00026137,120]
[342177543,1731536019851,26341.19,0.00019,15]
[342177545,1731536348089,363.0,0.00027,60]
[342177546,1731536825164,-1169.27083333,0.0002,2]
[342177547,1731536825185,-255.0,0.00022,2]
[342177548,1731536825221,-255.0,0.00022192,2]
[342177549,1731536825245,-255.0,0.00023014,2]
[342177550,1731536825271,-261.0,0.00024164,2]
[342177551,1731536825296,-262.692334,0.00024345,2]
[342177552,1731536825319,-265.21381724,0.00024658,2]
[342177553,1731536825341,-262.692334,0.0002503,2]
[342177554,1731536825364,-24900.0,0.00025114,2]
[342177555,1731536825386,-262.692334,0.00025715,2]
[342177556,1731536825408,-255.0,0.00025775,2]
[342177557,1731536825430,-258.6373018,0.000259,2]
[342177558,1731536825451,-219.7,0.00026,2]
[342177559,1731536825474,-169.847,0.00026575,13]
[342177560,1731536825496,-7223.70314126,0.0002689,2]
[342177561,1731536825521,-551.71691109,0.00027125,2]
[342177562,1731536825543,-7223.70314127,0.00027143,2]
[342177563,1731536825568,-255.0,0.00027386,2]
[342177564,1731536825589,-537.26,0.00027387,3]
[342177565,1731536825612,-531.60776205,0.00027397,4]
[342177566,1731536825635,-500.0,0.00027397,4]
[342177567,1731536825658,-500.0,0.00027397,4]
[342177568,1731536825680,-500.0,0.00027397,4]
[342177569,1731536825701,-251.69355519,0.00027397,4]
[342177570,1731536825723,-585.83494128,0.00027397,4]
[342177571,1731536825745,-1500.0,0.00027397,2]
[342177572,1731536825769,-500.0,0.00027397,4]
[342177573,1731536825792,-500.0,0.00027397,4]
[342177574,1731536825815,-500.0,0.00027397,4]
[342177575,1731536825838,-500.0,0.00027397,4]
[342177576,1731536825862,-500.0,0.00027397,4]
[342177577,1731536825885,-525.64094298,0.00027397,4]
[342177578,1731536825908,-500.0,0.00027397,4]
[342177579,1731536825930,-500.0,0.00027397,4]
[342177580,1731536825952,-500.0,0.00027397,4]
[342177581,1731536825973,-500.0,0.00027397,4]
[342177582,1731536825995,-500.0,0.00027397,4]
[342177583,1731536826017,-500.0,0.00027397,4]
[342177584,1731536826040,-500.0,0.00027397,4]
[342177585,1731536826061,-417.13103563,0.00027397,4]
[342177586,1731536826083,-500.0,0.00027397,4]
[342177587,1731536826103,-517.66008293,0.00027397,4]
[342177588,1731536826124,-500.0,0.00027397,4]
[342177589,1731536826145,-500.0,0.00027397,4]
[342177590,1731536826167,-500.0,0.00027397,4]
[342177591,1731536826189,-500.0,0.00027397,4]
[342177592,1731536826211,-500.0,0.00027397,4]
[342177593,1731536826232,-500.0,0.00027397,4]
[342177594,1731536826253,-500.0,0.00027397,4]
[342177595,1731536826277,-500.0,0.00027397,4]
[342177596,1731536826298,-500.0,0.00027397,4]
[342177597,1731536826319,-500.0,0.00027397,4]
[342177598,1731536826340,-500.0,0.00027397,4]
[342177599,1731536826361,-500.0,0.00027397,4]
[342177600,1731536826383,-648.36,0.00027397,4]
[342177601,1731536826404,-500.0,0.00027397,4]
[342177602,1731536826426,-500.0,0.00027397,4]
[342177603,1731536826448,-500.0,0.00027397,4]
[342177604,1731536826470,-500.0,0.00027397,4]
[342177605,1731536826491,-500.0,0.00027397,4]
[342177606,1731536826514,-500.0,0.00027397,4]
[342177607,1731536826534,-500.0,0.00027397,4]
[342177608,1731536826558,-517.95848693,0.00027397,4]
[342177609,1731536826579,-500.0,0.00027397,4]
[342177610,1731536826601,-500.0,0.00027397,4]
[342177611,1731536826622,-503.57951531,0.00027397,4]
[342177612,1731536826645,-500.0,0.00027397,4]
[342177613,1731536826667,-500.0,0.00027397,4]
[342177614,1731536826689,-500.0,0.00027397,4]
[342177615,1731536826714,-500.0,0.00027397,4]
[342177616,1731536826739,-562.51590633,0.00027397,4]
[342177617,1731536826768,-500.0,0.00027397,4]
[342177618,1731536826792,-500.0,0.00027397,4]
[342177619,1731536826814,-500.0,0.00027397,4]
[342177620,1731536826836,-500.0,0.00027397,4]
[342177621,1731536826859,-500.0,0.00027397,4]
[342177622,1731536826883,-500.0,0.00027397,4]
[342177623,1731536827045,-500.0,0.00027397,4]
[342177624,1731536827068,-500.0,0.00027397,4]
[342177625,1731536827089,-500.0,0.00027397,4]
[342177626,1731536827111,-320.96481286,0.00027397,4]
[342177627,1731536827131,-500.0,0.00027397,4]
[342177628,1731536827153,-500.0,0.00027397,4]
[342177629,1731536827175,-500.0,0.00027397,4]
[342177630,1731536827197,-500.0,0.00027397,4]
[342177631,1731536827221,-564.02,0.00027397,4]
[342177632,1731536827242,-500.0,0.00027397,4]
[342177633,1731536827264,-500.0,0.00027397,4]
[342177634,1731536827288,-500.0,0.00027397,4]
[342177635,1731536827312,-500.0,0.00027397,4]
[342177636,1731536827334,-500.0,0.00027397,4]
[342177637,1731536827355,-500.0,0.00027397,4]
[342177638,1731536827376,-500.0,0.00027397,4]
[342177639,1731536827396,-500.0,0.00027397,4]
[342177640,1731536827416,-500.0,0.00027397,2]
[342177641,1731536827436,-500.0,0.00027397,4]
[342177642,1731536827456,-500.0,0.00027397,4]
[342177643,1731536827476,-500.0,0.00027397,4]
[342177644,1731536827498,-598.81,0.00027397,4]
[342177645,1731536827524,-500.0,0.00027397,4]
[342177646,1731536827544,-500.0,0.00027397,4]
[342177647,1731536827568,-631.8381725,0.00027397,4]
[342177648,1731536827589,-473.58972281,0.00027397,4]
[342177649,1731536827610,-500.0,0.00027397,4]
[342177650,1731536827633,-500.0,0.00027397,4]
[342177651,1731536827655,-500.0,0.00027397,4]
[342177652,1731536827676,-500.0,0.00027397,4]
[342177653,1731536827698,-579.95,0.00027397,4]
[342177654,1731536827718,-500.0,0.00027397,4]
[342177655,1731536827739,-500.0,0.00027397,4]
[342177656,1731536827761,-500.0,0.00027397,4]
[342177657,1731536827789,-500.0,0.00027397,4]
[342177658,1731536827809,-500.0,0.00027397,4]
[342177659,1731536827830,-500.0,0.00027397,4]
[342177660,1731536827851,-500.0,0.00027397,4]
[342177661,1731536827873,-500.0,0.00027397,4]
[342177662,1731536827894,-500.0,0.00027397,4]
[342177663,1731536827915,-500.0,0.00027397,4]
[342177664,1731536827937,-500.0,0.00027397,4]
[342177665,1731536827959,-500.0,0.00027397,4]
[342177666,1731536827981,-500.0,0.00027397,4]
[342177667,1731536828002,-500.0,0.00027397,4]
[342177668,1731536828024,-500.0,0.00027397,4]
[342177669,1731536828045,-500.0,0.00027397,4]
[342177670,1731536828066,-500.0,0.00027397,4]
[342177671,1731536828088,-500.0,0.00027397,4]
[342177672,1731536828110,-500.0,0.00027397,4]
[342177673,1731536828131,-500.0,0.00027397,4]
[342177674,1731536828153,-3041.18,0.00027397,4]
[342177675,1731536828173,-500.0,0.00027397,4]
[342177676,1731536828195,-500.0,0.00027397,4]
[342177677,1731536828216,-471.15,0.000274,2]
[342177678,1731536828237,-1448.91732123,0.000274,4]
[342177679,1731536828257,-153.0,0.00027425,30]
[342177680,1731536828279,-153.0,0.00027425,30]
[342177681,1731536828300,-153.0,0.00027425,30]
[342177682,1731536828320,-153.0,0.00027425,30]
[342177683,1731536828341,-153.0,0.00027425,30]
[342177684,1731536828362,-153.0,0.00027425,30]
[342177685,1731536828382,-153.0,0.00027425,30]
[342177686,1731536828402,-500.0,0.000276,24]
[342177687,1731536828445,-255.0,0.00027616,2]
[342177688,1731536828476,-3204.487,0.00027617,2]
[342177689,1731536828506,-403.4574179,0.00027671,4]
[342177690,1731536828537,-500.0,0.00027671,4]
[342177691,1731536828566,-472.7788786,0.00027671,4]
[342177692,1731536828595,-500.0,0.00027671,4]
[342177693,1731536828624,-500.0,0.00027671,4]
[342177694,1731536828654,-500.0,0.00027671,4]
[342177695,1731536828682,-500.0,0.00027671,4]
[342177696,1731536828710,-409.73299288,0.00027671,4]
[342177697,1731536828751,-500.0,0.00027671,4]
[342177698,1731536828785,-500.0,0.00027671,4]
[342177699,1731536828812,-500.0,0.00027671,4]
[342177700,1731536828843,-500.0,0.00027671,4]
[342177701,1731536828872,-500.0,0.00027671,4]
[342177702,1731536828901,-564.02,0.00027671,4]
[342177703,1731536828928,-500.0,0.00027671,4]
[342177704,1731536828952,-598.81,0.00027671,4]
[342177705,1731536828978,-272.34,0.00027671,4]
[342177706,1731536829006,-579.95,0.00027671,4]
[342177707,1731536829036,-500.0,0.00027671,4]
[342177708,1731536829064,-500.0,0.00027671,4]
[342177709,1731536829090,-500.0,0.00027671,4]
[342177710,1731536829117,-500.0,0.00027671,4]
[342177711,1731536829151,-500.0,0.00027671,4]
[342177712,1731536829179,-3041.18,0.00027671,4]
[342177713,1731536829202,-500.0,0.00027671,4]
[342177714,1731536829226,-1569.1551,0.00027899,15]
[342177715,1731536829253,-772.18531186,0.00027945,2]
[342177716,1731536829280,-606.65394803,0.00027945,2]
[342177717,1731536829309,-393.86176292,0.00027945,4]
[342177718,1731536829335,-500.0,0.00027945,4]
[342177719,1731536829360,-58.55146256,0.00027945,4]
[342177720,1731536829583,-32257.29125057,0.00022,5]
[342177721,1731536845145,-197.73,0.00026,2]
[342177722,1731536845166,-21854.9486323,0.000264,2]
[342177723,1731536845188,-48081.1984397,0.00027,4]
[342177724,1731536898263,159.4656127,0.00013973,2]
[342177725,1731536917813,1981.07639951,0.00015,7]
[342177750,1731537032663,-236.53662187,0.00021999,2]
[342177751,1731537032674,-295.93956567,0.00021999,2]
[342177752,1731537032684,-53.12876658,0.00022,30]
[342177763,1731537039930,-242332.91069445,0.00022,30]
[342177764,1731537039970,-7792.653008,0.00022,30]
[342177777,1731537040382,-1787.54,0.00022,30]
[342177778,1731537040395,-1246.8636005,0.00022,30]
[342177779,1731537040406,-360.89015631,0.00022,30]
[342177780,1731537040500,-44821.50000002,0.00022,30]
[342177791,1731537043508,-3903.0,0.00022,30]
[342177792,1731537043520,-6923.08046034,0.00022,30]
[342177793,1731537043531,-252.475007,0.00022,30]
[342177809,1731537046404,-3584.14347229,0.00022,30]
[342177810,1731537046416,-3954.73863409,0.00022,30]
[342177811,1731537046426,-367.81127406,0.00022,2]
[342177812,1731537046435,-335.29324899,0.00023652,2]
[342177813,1731537046444,-170.25338576,0.00023752,2]
[342177814,1731537046453,-1546.19882171,0.00023852,2]
[342177818,1731537584745,189.379213,0.00013973,2]
[342177820,1731538026114,-1169.27083333,0.0002,2]
[342177821,1731538026136,-1559.0,0.0002,2]
[342177822,1731538026158,-197.58662271,0.000219,2]
[342177823,1731538026180,-220.979794,0.00023253,2]
[342177824,1731538026201,-250.0,0.00023354,2]
[342177825,1731538026223,-221.0,0.00023657,2]
[342177826,1731538026244,-17543.0142778,0.00023658,2]
[342177827,1731538026264,-500.0,0.000237,2]
[342177828,1731538026286,-197.0192504,0.00023768,2]
[342177829,1731538026306,-1045.90938305,0.00023852,2]
[342177830,1731538026327,-196.64,0.0002499,10]
[342177831,1731538026350,-374.98,0.0002499,10]
[342177832,1731538026372,-312.48,0.0002499,10]
[342177833,1731538026393,-260.4,0.0002499,10]
[342177834,1731538026415,-623.45382759,0.00024999,2]
[342177835,1731538026436,-245.20751604,0.00025,2]
[342177836,1731538026458,-56652.71912571,0.00025,2]
[342177875,1731538232536,-376.99990999,0.000199,2]
[342177877,1731538232546,-287.10370948,0.00023144,2]
[342177878,1731538232559,-41.46289152,0.00023144,2]
[342177880,1731538232568,-328.566601,0.00023829,2]
[342177882,1731538232578,-1169.27083333,0.00023829,2]
[342177883,1731538232587,-1652.58730305,0.00024063,2]
[342177885,1731538232599,-1136.79611265,0.00024063,2]
[342177886,1731538232610,-197.43488735,0.00024514,2]
[342177887,1731538235219,-131.13171365,0.00024514,2]
[342177888,1731538235230,-490.18531252,0.000249,2]
[342177889,1731538235240,-217.0,0.0002499,10]
[342177890,1731538235249,-163.47167736,0.00025,2]
[342177891,1731538235260,-50613.22603099,0.00025,2]
[342177892,1731538235272,-56950.9370326,0.00025,2]
[342177893,1731538235282,-165.49956538,0.00025,2]
[342177894,1731538235291,-203.43640087,0.00025,2]
[342177895,1731538235301,-10364.0,0.00025,2]
[342177896,1731538235311,-509.93665546,0.00025,2]
[342177897,1731538235321,-169.847,0.00025,8]
[342177898,1731538235331,-467.94986428,0.00025073,2]
[342177899,1731538235341,-500.79655364,0.00025073,2]
[342177900,1731538235351,-165.57563531,0.00025089,2]
[342177901,1731538235361,-207.15769597,0.00025089,2]
[342177902,1731538235370,-73679.84386197,0.0002509,2]
[342177903,1731538235382,-421.49265646,0.0002509,2]
[342177909,1731538238710,-180.83,0.0002499,10]
[342177910,1731538238719,-13047.77000004,0.0002509,2]
[342177911,1731538238941,-47144.71410489,0.0002509,2]
[342177926,1731538240561,-44870.00000001,0.0002509,2]
[342177927,1731538240573,-8512.08957604,0.0002509,2]
[342177928,1731538240583,-151.0,0.0002509,7]
[342177929,1731538240592,-1313.799996,0.0002509,7]
[342177930,1731538240602,-1313.799996,0.0002509,7]
[342177931,1731538240612,-151.0,0.0002509,2]
[342177932,1731538240621,-150.112233,0.000256,16]
[342177933,1731538240631,-490.18531246,0.00025662,2]
[342177934,1731538240645,-150.112233,0.000258,12]
[342177935,1731538240655,-528.46341211,0.00026,2]
[342177936,1731538240664,-150.112233,0.00026,19]
[342177937,1731538240673,-177.96,0.00026,2]
[342177938,1731538240683,-150.112233,0.000262,18]
[342177939,1731538240692,-150.112233,0.000264,11]
[342177940,1731538240702,-490.18531246,0.00026425,2]
[342177941,1731538240711,-150.112233,0.000266,10]
[342177942,1731538240721,-150.112233,0.000268,10]
[342177943,1731538240732,-3773.93046392,0.000269,2]
[342177954,1731538243606,-2032.74999546,0.000269,2]
[342177955,1731538243668,-193.31954062,0.000269,2]
[342177956,1731538243678,-423.43008898,0.000269,2]
[342177957,1731538243688,-258.14341133,0.00026973,2]
[342177970,1731538523738,189.379213,0.00013973,2]
[342177973,1731539229153,-1169.27083333,0.0002,2]
[342177974,1731539229175,-5155.750355,0.000218,2]
[342177975,1731539229196,-160.26922661,0.00024294,2]
[342177976,1731539229217,-300.0,0.00024394,2]
[342177977,1731539229242,-300.0,0.00024394,2]
[342177978,1731539229264,-1614.43175,0.00024395,2]
[342177979,1731539229286,-170.23575,0.00024395,2]
[342177980,1731539229307,-24900.0,0.00024833,2]
[342177981,1731539229327,-306.137157,0.00024862,2]
[342177982,1731539229351,-633.873289,0.00024999,2]
[342177983,1731539229372,-169.900908,0.00025032,2]
[342177984,1731539229406,-1479.79247043,0.00025543,2]
[342177985,1731539229434,-633.873289,0.00025683,2]
[342177986,1731539229456,-160.16,0.00026,2]
[342177987,1731539229480,-1479.79247043,0.00026325,2]
[342177988,1731539229502,-163.47167737,0.00026325,2]
[342177989,1731539229524,-633.873289,0.00026368,2]
[342177990,1731539229546,-300.0,0.00026443,2]
[342177991,1731539229567,-6580.28723184,0.00026829,2]
[342177992,1731539229588,-411.0,0.00026833,2]
[342177993,1731539229610,-169.848,0.00026849,14]
[342177994,1731539229632,-6000.0,0.000269,2]
[342177995,1731539229656,-1589.58354924,0.000269,2]
[342177996,1731539229678,-12520.70601926,0.000269,2]
[342177997,1731539229700,-5722.77510037,0.000269,2]
[342177998,1731539229722,-150.69,0.0002699,10]
[342177999,1731539229745,-753.5,0.0002699,10]
[342178000,1731539229771,-1160.64478512,0.00027,4]
[342178001,1731539238155,-153.0,0.00025941,2]
[342178002,1731539238180,-381.08708001,0.000269,2]
[342178003,1731539238207,-251627.89882175,0.00027,4]
[342178004,1731539245125,-1169.27083333,0.0002,2]
[342178005,1731539245147,-24910.23110052,0.00026728,2]
[342178006,1731539245170,-243013.86698248,0.00027,4]
[342178008,1731539348140,-1125.36290856,0.0002,2]
[342178027,1731539432018,-1023.09635164,0.000199,2]
[342178028,1731539432032,-43.90792477,0.0002,2]
[342178029,1731539432044,-1169.27083333,0.0002,2]
[342178030,1731539432054,-821.6059629,0.00024833,2]
[342178031,1731539432065,-150.0,0.00026,2]
[342178032,1731539432076,-153.0,0.000269,2]
[342178033,1731539432086,-1109.84435283,0.000269,2]